[Event "*** Titled Tuesday Blitz"]
[Site "Chess.com"]
[Date "2021.04.06"]
[Round "5"]
[White "ybruned"]
[Black "GMaka"]
[Result "1-0"]
[WhiteElo "2342"]
[BlackElo "2454"]
[TimeControl "180+1"]
[EndTime "10:58:23 PDT"]
[Termination "ybruned won by resignation"]

1. b3 {[%clk 0:03:00.9]} 1... e5 {[%clk 0:00:17.2]} 2. Bb2 {[%clk 0:02:58.4]}
2... Nc6 {[%clk 0:00:17.2]} 3. e3 {[%clk 0:02:57.4]} 3... d6 {[%clk 0:00:18.1]}
4. d4 {[%clk 0:02:56.2]} 4... Nge7 {[%clk 0:00:18]} 5. dxe5 {[%clk 0:02:54.5]}
5... dxe5 {[%clk 0:00:18.9]} 6. Qxd8+ {[%clk 0:02:53.6]} 6... Kxd8 {[%clk
0:00:19.8]} 7. Nc3 {[%clk 0:02:54]} 7... f6 {[%clk 0:00:18.7]} 8. O-O-O+ {[%clk
0:02:54.3]} 8... Ke8 {[%clk 0:00:18.9]} 9. Nb5 {[%clk 0:02:52.6]} 9... Kf7
{[%clk 0:00:19]} 10. Nxc7 {[%clk 0:02:51.6]} 10... Rb8 {[%clk 0:00:19.6]} 11.
Bc4+ {[%clk 0:02:50.3]} 11... Kg6 {[%clk 0:00:20]} 12. Nb5 {[%clk 0:02:43.2]}
12... a6 {[%clk 0:00:20.1]} 13. Nd6 {[%clk 0:02:20.3]} 13... b5 {[%clk 0:00:21]}
14. Bf7+ {[%clk 0:02:13]} 14... Kh6 {[%clk 0:00:19.7]} 15. Nxc8 {[%clk
0:01:56.1]} 15... Rxc8 {[%clk 0:00:20.6]} 16. Kb1 {[%clk 0:01:54]} 16... g6
{[%clk 0:00:20.2]} 17. Nf3 {[%clk 0:01:51.9]} 17... Bg7 {[%clk 0:00:20.2]} 18.
Be6 {[%clk 0:01:52.2]} 18... Rcd8 {[%clk 0:00:19.6]} 19. a3 {[%clk 0:01:47.7]}
19... f5 {[%clk 0:00:19.9]} 20. h4 {[%clk 0:01:43.2]} 20... e4 {[%clk
0:00:20.2]} 21. Ng5 {[%clk 0:01:42.3]} 21... Bxb2 {[%clk 0:00:19.7]} 22. Nf7+
{[%clk 0:01:38]} 22... Kg7 {[%clk 0:00:20.2]} 23. Kxb2 {[%clk 0:01:20.8]} 23...
Rxd1 {[%clk 0:00:18.1]} 24. Rxd1 {[%clk 0:01:20.9]} 24... Rf8 {[%clk 0:00:17.7]}
25. Ng5 {[%clk 0:01:17.7]} 25... h6 {[%clk 0:00:18.1]} 26. Nh3 {[%clk
0:01:17.4]} 26... Kf6 {[%clk 0:00:17.4]} 27. Bd5 {[%clk 0:01:05.2]} 27... Rd8
{[%clk 0:00:17.9]} 28. c4 {[%clk 0:01:05.2]} 28... Ne5 {[%clk 0:00:17.8]} 29.
Kc3 {[%clk 0:01:02.4]} 29... bxc4 {[%clk 0:00:17.9]} 30. bxc4 {[%clk 0:01:01.9]}
30... Nd3 {[%clk 0:00:18.4]} 31. Bb7 {[%clk 0:00:48.4]} 31... a5 {[%clk
0:00:18.7]} 32. Rb1 {[%clk 0:00:46.3]} 32... Nc8 {[%clk 0:00:16]} 33. Bxc8
{[%clk 0:00:43.9]} 33... Rxc8 {[%clk 0:00:16.9]} 34. Rb6+ {[%clk 0:00:44.1]}
34... Kf7 {[%clk 0:00:17.4]} 35. Ra6 {[%clk 0:00:44.3]} 35... Ne5 {[%clk
0:00:14.8]} 36. Rxa5 {[%clk 0:00:42.3]} 36... Nxc4 {[%clk 0:00:14.7]} 37. Ra7+
{[%clk 0:00:42.9]} 37... Kf6 {[%clk 0:00:15.1]} 38. Kd4 {[%clk 0:00:40.4]} 38...
Nd2 {[%clk 0:00:09.6]} 39. Ra6+ {[%clk 0:00:39.5]} 39... Kf7 {[%clk 0:00:09.1]}
40. Ke5 {[%clk 0:00:39.9]} 40... Nc4+ {[%clk 0:00:08.6]} 41. Kd5 {[%clk
0:00:38.1]} 41... Nd2 {[%clk 0:00:08.9]} 42. Ra7+ {[%clk 0:00:38.5]} 42... Kf6
{[%clk 0:00:08.8]} 43. Ra6+ {[%clk 0:00:38.1]} 43... Kf7 {[%clk 0:00:08.5]} 44.
Nf4 {[%clk 0:00:38.7]} 44... Rd8+ {[%clk 0:00:08.6]} 45. Kc5 {[%clk 0:00:37]}
45... g5 {[%clk 0:00:09.5]} 46. hxg5 {[%clk 0:00:36.6]} 46... hxg5 {[%clk
0:00:10.4]} 47. Nh3 {[%clk 0:00:36.7]} 47... Nb3+ {[%clk 0:00:10.6]} 48. Kb4
{[%clk 0:00:36.5]} 48... Nd2 {[%clk 0:00:11]} 49. Nxg5+ {[%clk 0:00:36.8]} 49...
Kg7 {[%clk 0:00:10.8]} 50. Nh3 {[%clk 0:00:37.5]} 50... Rb8+ {[%clk 0:00:08.8]}
51. Kc5 {[%clk 0:00:36.2]} 51... Rb2 {[%clk 0:00:07.9]} 52. Kd5 {[%clk
0:00:34.7]} 52... Nb1 {[%clk 0:00:07]} 53. Ke5 {[%clk 0:00:34.3]} 53... Nc3
{[%clk 0:00:07.5]} 54. Kxf5 {[%clk 0:00:33.7]} 54... Nd1 {[%clk 0:00:08.4]} 55.
Kxe4 {[%clk 0:00:33.3]} 55... Nxf2+ {[%clk 0:00:09.3]} 56. Nxf2 {[%clk
0:00:33.5]} 56... Rxf2 {[%clk 0:00:10.2]} 57. g4 {[%clk 0:00:33.9]} 57... Rg2
{[%clk 0:00:10.6]} 58. Kf3 {[%clk 0:00:34.2]} 58... Ra2 {[%clk 0:00:11]} 59. a4
{[%clk 0:00:34.6]} 59... Kf7 {[%clk 0:00:11.2]} 60. a5 {[%clk 0:00:35.1]} 60...
Kg7 {[%clk 0:00:12.1]} 61. Kf4 {[%clk 0:00:35.5]} 61... Kf7 {[%clk 0:00:12.5]}
62. e4 {[%clk 0:00:36.1]} 62... Ra4 {[%clk 0:00:12.8]} 63. g5 {[%clk 0:00:36.2]}
63... Ra1 {[%clk 0:00:13.7]} 64. Kf5 {[%clk 0:00:36.7]} 64... Rf1+ {[%clk
0:00:13.1]} 65. Ke5 {[%clk 0:00:37]} 65... Rg1 {[%clk 0:00:13.8]} 66. g6+ {[%clk
0:00:37.3]} 66... Ke7 {[%clk 0:00:13.4]} 67. Ra7+ {[%clk 0:00:36.5]} 67... Ke8
{[%clk 0:00:13.2]} 68. g7 {[%clk 0:00:37.2]} 1-0

[Event "*** Titled Tuesday Blitz"]
[Site "Chess.com"]
[Date "2021.04.06"]
[Round "5"]
[White "KingCyber19"]
[Black "WonderChampion"]
[Result "1-0"]
[WhiteElo "2542"]
[BlackElo "2116"]
[TimeControl "180+1"]
[EndTime "10:58:23 PDT"]
[Termination "KingCyber19 won by checkmate"]

1. d4 {[%clk 0:03:00.9]} 1... d5 {[%clk 0:02:59]} 2. c4 {[%clk 0:03:01.4]} 2...
e6 {[%clk 0:02:59.5]} 3. Nf3 {[%clk 0:03:01.5]} 3... c6 {[%clk 0:03:00.1]} 4.
Nc3 {[%clk 0:03:01.3]} 4... dxc4 {[%clk 0:03:01]} 5. a4 {[%clk 0:03:00.7]} 5...
Bb4 {[%clk 0:02:58.7]} 6. g3 {[%clk 0:02:59.2]} 6... b5 {[%clk 0:02:59.2]} 7.
Bg2 {[%clk 0:02:55.8]} 7... Bb7 {[%clk 0:02:59.4]} 8. O-O {[%clk 0:02:55.6]}
8... Nf6 {[%clk 0:02:58.9]} 9. axb5 {[%clk 0:02:54.4]} 9... cxb5 {[%clk
0:02:57.8]} 10. Nxb5 {[%clk 0:02:54.8]} 10... O-O {[%clk 0:02:57.1]} 11. Bf4
{[%clk 0:02:51.7]} 11... a6 {[%clk 0:02:52.9]} 12. Na3 {[%clk 0:02:47.8]} 12...
c3 {[%clk 0:02:48.4]} 13. bxc3 {[%clk 0:02:38.9]} 13... Bxc3 {[%clk 0:02:49.3]}
14. Rc1 {[%clk 0:02:39.4]} 14... Bb2 {[%clk 0:02:39.7]} 15. Rb1 {[%clk
0:02:24.7]} 15... Bxa3 {[%clk 0:02:27]} 16. Rxb7 {[%clk 0:02:25]} 16... Nc6
{[%clk 0:02:21.6]} 17. Qa4 {[%clk 0:02:22.9]} 17... Na5 {[%clk 0:02:03.3]} 18.
Rc7 {[%clk 0:02:10.9]} 18... Nd5 {[%clk 0:01:57.4]} 19. Qxa5 {[%clk 0:02:04.7]}
19... Nxc7 {[%clk 0:01:53.4]} 20. Qxa3 {[%clk 0:01:59.1]} 20... Nd5 {[%clk
0:01:51]} 21. Bd6 {[%clk 0:01:57.3]} 21... Re8 {[%clk 0:01:46.7]} 22. Bc5 {[%clk
0:01:57.9]} 22... a5 {[%clk 0:01:43.9]} 23. Ne5 {[%clk 0:01:58.2]} 23... Qc7
{[%clk 0:01:37]} 24. Rc1 {[%clk 0:01:52]} 24... Rec8 {[%clk 0:01:30.4]} 25. Bxd5
{[%clk 0:01:48.3]} 25... exd5 {[%clk 0:01:28.1]} 26. Nd3 {[%clk 0:01:48.3]}
26... Qb7 {[%clk 0:01:14.3]} 27. Qa2 {[%clk 0:01:41.3]} 27... a4 {[%clk
0:01:10.4]} 28. Nb4 {[%clk 0:01:39]} 28... Rd8 {[%clk 0:01:09.9]} 29. Ra1 {[%clk
0:01:35.6]} 29... Qb5 {[%clk 0:01:06.3]} 30. Nxd5 {[%clk 0:01:32.4]} 30... Qb3
{[%clk 0:01:01.4]} 31. Ne7+ {[%clk 0:01:22]} 31... Kh8 {[%clk 0:00:58.3]} 32.
Qa3 {[%clk 0:01:01.8]} 32... Qc4 {[%clk 0:00:47.3]} 33. e4 {[%clk 0:00:55.8]}
33... Rdb8 {[%clk 0:00:45.3]} 34. Rc1 {[%clk 0:00:52.5]} 34... Qe2 {[%clk
0:00:43.4]} 35. Bd6 {[%clk 0:00:43.3]} 35... Rb2 {[%clk 0:00:39.7]} 36. Rf1
{[%clk 0:00:34.5]} 36... Ra2 {[%clk 0:00:27.9]} 37. Qe3 {[%clk 0:00:23]} 37...
Qc4 {[%clk 0:00:23.5]} 38. Be5 {[%clk 0:00:19]} 38... f6 {[%clk 0:00:22.1]} 39.
Bd6 {[%clk 0:00:15.6]} 39... a3 {[%clk 0:00:19.4]} 40. e5 {[%clk 0:00:15.9]}
40... Re2 {[%clk 0:00:18.2]} 41. Qf4 {[%clk 0:00:14]} 41... fxe5 {[%clk
0:00:16.2]} 42. Bxe5 {[%clk 0:00:14.3]} 42... Qg8 {[%clk 0:00:12]} 43. Nxg8
{[%clk 0:00:13.7]} 43... Rxg8 {[%clk 0:00:09.7]} 44. Ra1 {[%clk 0:00:12.1]}
44... a2 {[%clk 0:00:09.4]} 45. Qf3 {[%clk 0:00:12.5]} 45... Rb2 {[%clk
0:00:08.5]} 46. d5 {[%clk 0:00:11.7]} 46... Rb1+ {[%clk 0:00:06.5]} 47. Kg2
{[%clk 0:00:12.4]} 47... Ra8 {[%clk 0:00:06.7]} 48. d6 {[%clk 0:00:11.8]} 48...
Rab8 {[%clk 0:00:03.6]} 49. d7 {[%clk 0:00:10.8]} 49... Rd8 {[%clk 0:00:02]} 50.
Rxa2 {[%clk 0:00:09.7]} 50... Rb4 {[%clk 0:00:02.9]} 51. Qf7 {[%clk 0:00:09]}
51... Rc4 {[%clk 0:00:03.8]} 52. Qxg7# {[%clk 0:00:08.9]} 1-0

[Event "*** Titled Tuesday Blitz"]
[Site "Chess.com"]
[Date "2021.04.06"]
[Round "5"]
[White "Rakesh"]
[Black "azikom"]
[Result "0-1"]
[WhiteElo "2496"]
[BlackElo "2700"]
[TimeControl "180+1"]
[EndTime "10:58:25 PDT"]
[Termination "azikom won by resignation"]

1. e4 {[%clk 0:03:00.9]} 1... e5 {[%clk 0:03:00.3]} 2. Nf3 {[%clk 0:02:59.9]}
2... Nc6 {[%clk 0:03:00.7]} 3. d4 {[%clk 0:03:00.3]} 3... exd4 {[%clk
0:02:59.2]} 4. Nxd4 {[%clk 0:03:00.6]} 4... Bb4+ {[%clk 0:02:59.4]} 5. Nc3
{[%clk 0:02:58.4]} 5... Nge7 {[%clk 0:02:54.8]} 6. Bc4 {[%clk 0:02:57.2]} 6...
O-O {[%clk 0:02:49.2]} 7. O-O {[%clk 0:02:55.6]} 7... d6 {[%clk 0:02:48.2]} 8.
Bg5 {[%clk 0:02:52.2]} 8... h6 {[%clk 0:02:41.8]} 9. Bh4 {[%clk 0:02:24.3]} 9...
Bxc3 {[%clk 0:02:13.9]} 10. Nxc6 {[%clk 0:02:07.5]} 10... bxc6 {[%clk
0:02:10.4]} 11. bxc3 {[%clk 0:02:07.9]} 11... Be6 {[%clk 0:02:04.3]} 12. Bxe6
{[%clk 0:01:56.4]} 12... fxe6 {[%clk 0:02:03.5]} 13. e5 {[%clk 0:01:57.3]} 13...
d5 {[%clk 0:01:45.7]} 14. c4 {[%clk 0:01:47.4]} 14... Qd7 {[%clk 0:01:44.2]} 15.
cxd5 {[%clk 0:01:46.7]} 15... cxd5 {[%clk 0:01:43.7]} 16. Rb1 {[%clk 0:01:42]}
16... Nf5 {[%clk 0:01:41.4]} 17. Bg3 {[%clk 0:01:41.1]} 17... Qc6 {[%clk
0:01:31.2]} 18. Qg4 {[%clk 0:01:30.6]} 18... Kh7 {[%clk 0:01:26]} 19. c4 {[%clk
0:01:17.4]} 19... dxc4 {[%clk 0:01:05.3]} 20. Rbc1 {[%clk 0:01:16]} 20... c3
{[%clk 0:01:04.9]} 21. Qb4 {[%clk 0:01:00.2]} 21... Rab8 {[%clk 0:00:44.8]} 22.
Qxc3 {[%clk 0:00:59.5]} 22... Qxc3 {[%clk 0:00:44]} 23. Rxc3 {[%clk 0:01:00.4]}
23... Rf7 {[%clk 0:00:44.5]} 24. Rfc1 {[%clk 0:00:36.1]} 24... Rb2 {[%clk
0:00:41.1]} 25. Kf1 {[%clk 0:00:35.6]} 25... Rxa2 {[%clk 0:00:20.8]} 26. Bf4
{[%clk 0:00:32]} 26... g5 {[%clk 0:00:18.8]} 27. g4 {[%clk 0:00:30]} 27... gxf4
{[%clk 0:00:14.8]} 28. gxf5 {[%clk 0:00:29.7]} 28... Rxf5 {[%clk 0:00:15.2]} 29.
Rxc7+ {[%clk 0:00:29.7]} 29... Kg6 {[%clk 0:00:15.6]} 30. R7c5 {[%clk
0:00:26.2]} 30... f3 {[%clk 0:00:12.4]} 31. h4 {[%clk 0:00:22.5]} 31... a5
{[%clk 0:00:10]} 32. Kg1 {[%clk 0:00:21.7]} 32... Rf4 {[%clk 0:00:09.4]} 33. Kh2
{[%clk 0:00:20]} 33... Rg4 {[%clk 0:00:08.8]} 34. R1c2 {[%clk 0:00:17.6]} 34...
Rxc2 {[%clk 0:00:08]} 35. Rxc2 {[%clk 0:00:18.5]} 35... Rxh4+ {[%clk 0:00:08]}
36. Kg3 {[%clk 0:00:18.9]} 36... Rb4 {[%clk 0:00:08.5]} 37. Kxf3 {[%clk
0:00:18.6]} 37... Kf5 {[%clk 0:00:08.6]} 38. Rc5 {[%clk 0:00:18.8]} 38... a4
{[%clk 0:00:08.5]} 39. Ra5 {[%clk 0:00:19]} 39... h5 {[%clk 0:00:08.5]} 40. Kg3
{[%clk 0:00:18.5]} 40... h4+ {[%clk 0:00:08.5]} 41. Kh3 {[%clk 0:00:18.7]} 41...
Rf4 {[%clk 0:00:08.8]} 42. f3 {[%clk 0:00:15.8]} 42... Rxf3+ {[%clk 0:00:08]}
43. Kxh4 {[%clk 0:00:16.2]} 43... a3 {[%clk 0:00:08.4]} 44. Ra8 {[%clk
0:00:13.1]} 44... Kxe5 {[%clk 0:00:07.6]} 45. Ra5+ {[%clk 0:00:12.7]} 45... Kd6
{[%clk 0:00:07.2]} 46. Ra4 {[%clk 0:00:13.2]} 46... Kc5 {[%clk 0:00:06.5]} 47.
Kg4 {[%clk 0:00:13.5]} 47... Rc3 {[%clk 0:00:06.2]} 48. Kf4 {[%clk 0:00:13.6]}
48... Rc4+ {[%clk 0:00:06.3]} 49. Rxc4+ {[%clk 0:00:13.5]} 49... Kxc4 {[%clk
0:00:06.7]} 50. Ke3 {[%clk 0:00:14.4]} 50... a2 {[%clk 0:00:07.6]} 51. Kd2
{[%clk 0:00:15.2]} 51... a1=Q {[%clk 0:00:08.5]} 0-1

[Event "*** Titled Tuesday Blitz"]
[Site "Chess.com"]
[Date "2021.04.06"]
[Round "5"]
[White "mariofs"]
[Black "Handszar"]
[Result "0-1"]
[WhiteElo "2217"]
[BlackElo "2358"]
[TimeControl "180+1"]
[EndTime "10:58:25 PDT"]
[Termination "Handszar won by checkmate"]

1. d4 {[%clk 0:03:00.9]} 1... Nf6 {[%clk 0:02:58.7]} 2. Nf3 {[%clk 0:03:00.7]}
2... c5 {[%clk 0:02:56.7]} 3. c3 {[%clk 0:02:59.7]} 3... Qc7 {[%clk 0:02:54.5]}
4. g3 {[%clk 0:02:58.2]} 4... g6 {[%clk 0:02:53.1]} 5. Bg2 {[%clk 0:02:58.4]}
5... Bg7 {[%clk 0:02:52.8]} 6. O-O {[%clk 0:02:59.3]} 6... O-O {[%clk
0:02:52.6]} 7. Bf4 {[%clk 0:02:57.1]} 7... d6 {[%clk 0:02:52.8]} 8. Nbd2 {[%clk
0:02:56.2]} 8... Nc6 {[%clk 0:02:49.6]} 9. dxc5 {[%clk 0:02:52.6]} 9... e5
{[%clk 0:02:41.5]} 10. cxd6 {[%clk 0:02:52.5]} 10... Qxd6 {[%clk 0:02:41.6]} 11.
Bg5 {[%clk 0:02:42.3]} 11... h6 {[%clk 0:02:40.8]} 12. Bxf6 {[%clk 0:02:42.5]}
12... Qxf6 {[%clk 0:02:40.9]} 13. Ne4 {[%clk 0:02:40.9]} 13... Qe7 {[%clk
0:02:37.6]} 14. Qd6 {[%clk 0:02:28.7]} 14... Re8 {[%clk 0:02:34.9]} 15. Rfd1
{[%clk 0:02:21.6]} 15... f5 {[%clk 0:02:17.6]} 16. Qxe7 {[%clk 0:02:21.4]} 16...
Rxe7 {[%clk 0:02:18.5]} 17. Nc5 {[%clk 0:02:15]} 17... e4 {[%clk 0:02:12]} 18.
Nh4 {[%clk 0:02:12.4]} 18... Kh7 {[%clk 0:01:22.9]} 19. Rd6 {[%clk 0:02:11.7]}
19... Ne5 {[%clk 0:01:06]} 20. f4 {[%clk 0:01:58.2]} 20... exf3 {[%clk
0:01:05.1]} 21. Nxf3 {[%clk 0:01:58.3]} 21... Nc4 {[%clk 0:00:50.4]} 22. Rd8
{[%clk 0:01:42.3]} 22... Nxb2 {[%clk 0:00:47.4]} 23. Nd4 {[%clk 0:01:34.4]}
23... Nc4 {[%clk 0:00:39.6]} 24. Kf2 {[%clk 0:01:20.5]} 24... Bf6 {[%clk
0:00:31.7]} 25. Rd1 {[%clk 0:00:54.2]} 25... Rc7 {[%clk 0:00:27.4]} 26. Nce6
{[%clk 0:00:54.3]} 26... Bxd8 {[%clk 0:00:26.5]} 27. Nxd8 {[%clk 0:00:52]} 27...
Bd7 {[%clk 0:00:25.2]} 28. Nxb7 {[%clk 0:00:51.9]} 28... Rb8 {[%clk 0:00:24.7]}
29. Nb3 {[%clk 0:00:40.4]} 29... Ba4 {[%clk 0:00:21.2]} 30. N7c5 {[%clk
0:00:39.4]} 30... Rxc5 {[%clk 0:00:20.6]} 31. Rd4 {[%clk 0:00:23.9]} 31... Bxb3
{[%clk 0:00:20.1]} 32. axb3 {[%clk 0:00:24.8]} 32... Rxb3 {[%clk 0:00:19.9]} 33.
Bd5 {[%clk 0:00:23.3]} 33... Rxc3 {[%clk 0:00:18.9]} 34. Be6 {[%clk 0:00:22.1]}
34... Ne3 {[%clk 0:00:17.8]} 35. Rd7+ {[%clk 0:00:21.5]} 35... Kh8 {[%clk
0:00:17.9]} 36. Rd8+ {[%clk 0:00:20.3]} 36... Kg7 {[%clk 0:00:18.6]} 37. Rd7+
{[%clk 0:00:17.3]} 37... Kf6 {[%clk 0:00:18.6]} 38. Ba2 {[%clk 0:00:17.3]} 38...
Ng4+ {[%clk 0:00:17.3]} 39. Kg2 {[%clk 0:00:16.5]} 39... Ne5 {[%clk 0:00:18.2]}
40. Rxa7 {[%clk 0:00:15.3]} 40... Rc2 {[%clk 0:00:18.5]} 41. Kf1 {[%clk
0:00:14.8]} 41... Rc1+ {[%clk 0:00:18]} 42. Kf2 {[%clk 0:00:14.6]} 42... R5c2
{[%clk 0:00:18.4]} 43. Bb3 {[%clk 0:00:14]} 43... Rb2 {[%clk 0:00:17.8]} 44. Bd5
{[%clk 0:00:14]} 44... Ng4+ {[%clk 0:00:16.9]} 45. Kf3 {[%clk 0:00:12.6]} 45...
Rc3+ {[%clk 0:00:16.8]} 46. Kg2 {[%clk 0:00:09.4]} 46... Ne3+ {[%clk 0:00:14.3]}
47. Kf2 {[%clk 0:00:09.3]} 47... Nxd5 {[%clk 0:00:15.2]} 48. Ra6+ {[%clk
0:00:09.3]} 48... Ke5 {[%clk 0:00:14.4]} 49. Ra5 {[%clk 0:00:09.3]} 49... Ke4
{[%clk 0:00:13.7]} 50. Ra4+ {[%clk 0:00:09]} 50... Rb4 {[%clk 0:00:13.8]} 51.
Ra2 {[%clk 0:00:08.4]} 51... Ne3 {[%clk 0:00:13]} 52. Rd2 {[%clk 0:00:07.2]}
52... Ng4+ {[%clk 0:00:12.4]} 53. Kg2 {[%clk 0:00:07.6]} 53... Rd4 {[%clk
0:00:12.3]} 54. Ra2 {[%clk 0:00:07.5]} 54... Ne3+ {[%clk 0:00:11.9]} 55. Kf2
{[%clk 0:00:07.5]} 55... Rc1 {[%clk 0:00:11.4]} 56. h3 {[%clk 0:00:07.5]} 56...
Rf1# {[%clk 0:00:10.8]} 0-1

[Event "*** Titled Tuesday Blitz"]
[Site "Chess.com"]
[Date "2021.04.06"]
[Round "5"]
[White "scandalgod"]
[Black "jacky72"]
[Result "1-0"]
[WhiteElo "2546"]
[BlackElo "2715"]
[TimeControl "180+1"]
[EndTime "10:58:26 PDT"]
[Termination "scandalgod won on time"]

1. d4 {[%clk 0:03:00.9]} 1... Nf6 {[%clk 0:02:58.4]} 2. c4 {[%clk 0:03:00.9]}
2... g6 {[%clk 0:02:58.3]} 3. Nc3 {[%clk 0:03:00.4]} 3... Bg7 {[%clk 0:02:56.2]}
4. e4 {[%clk 0:03:00.3]} 4... O-O {[%clk 0:02:57.1]} 5. f4 {[%clk 0:03:00.1]}
5... d6 {[%clk 0:02:57.4]} 6. Nf3 {[%clk 0:03:00.2]} 6... c5 {[%clk 0:02:57.6]}
7. d5 {[%clk 0:03:00.7]} 7... e6 {[%clk 0:02:58.1]} 8. Be2 {[%clk 0:03:00.9]}
8... exd5 {[%clk 0:02:58.8]} 9. cxd5 {[%clk 0:03:01.4]} 9... Re8 {[%clk
0:02:59.7]} 10. e5 {[%clk 0:03:01.6]} 10... dxe5 {[%clk 0:03:00.6]} 11. fxe5
{[%clk 0:03:02]} 11... Ng4 {[%clk 0:03:01.5]} 12. Bg5 {[%clk 0:03:02]} 12... Qb6
{[%clk 0:02:59.7]} 13. O-O {[%clk 0:03:01.4]} 13... Nxe5 {[%clk 0:02:53]} 14. d6
{[%clk 0:02:58.4]} 14... Be6 {[%clk 0:02:37.2]} 15. Nd5 {[%clk 0:02:56.1]} 15...
Bxd5 {[%clk 0:02:33.2]} 16. Qxd5 {[%clk 0:02:52.8]} 16... Nbd7 {[%clk
0:02:33.1]} 17. Rad1 {[%clk 0:02:32.5]} 17... Qxb2 {[%clk 0:02:22.8]} 18. Rd2
{[%clk 0:02:05.3]} 18... Qc3 {[%clk 0:02:09.3]} 19. Nxe5 {[%clk 0:01:56.7]}
19... Nxe5 {[%clk 0:01:49.5]} 20. d7 {[%clk 0:01:54.5]} 20... Red8 {[%clk
0:01:50]} 21. Qxb7 {[%clk 0:01:40]} 21... f6 {[%clk 0:01:32.4]} 22. Bf4 {[%clk
0:01:13.7]} 22... g5 {[%clk 0:01:32.1]} 23. Qd5+ {[%clk 0:01:08.9]} 23... Nf7
{[%clk 0:01:20.8]} 24. Bc7 {[%clk 0:00:54.1]} 24... Qe3+ {[%clk 0:01:01.4]} 25.
Kh1 {[%clk 0:00:53.5]} 25... Qe7 {[%clk 0:00:55]} 26. Bxd8 {[%clk 0:00:46]}
26... Rxd8 {[%clk 0:00:54.1]} 27. Bh5 {[%clk 0:00:46.1]} 27... Kf8 {[%clk
0:00:53]} 28. Bxf7 {[%clk 0:00:39.1]} 28... Qxf7 {[%clk 0:00:53.1]} 29. Qxc5+
{[%clk 0:00:39.4]} 29... Kg8 {[%clk 0:00:53.7]} 30. Qc8 {[%clk 0:00:39.2]} 30...
Qe7 {[%clk 0:00:48.5]} 31. h3 {[%clk 0:00:39]} 31... f5 {[%clk 0:00:43.9]} 32.
Rc1 {[%clk 0:00:37.8]} 32... Kf7 {[%clk 0:00:35.4]} 33. Qc4+ {[%clk 0:00:36.5]}
33... Kg6 {[%clk 0:00:35.8]} 34. Qc6+ {[%clk 0:00:35.7]} 34... Bf6 {[%clk
0:00:33.7]} 35. Rd6 {[%clk 0:00:35]} 35... Kg7 {[%clk 0:00:31.5]} 36. Rcd1
{[%clk 0:00:34.9]} 36... g4 {[%clk 0:00:29]} 37. Re6 {[%clk 0:00:35]} 37... Qf7
{[%clk 0:00:29.1]} 38. Re8 {[%clk 0:00:35]} 38... gxh3 {[%clk 0:00:27]} 39. gxh3
{[%clk 0:00:35.3]} 39... Qh5 {[%clk 0:00:25.1]} 40. Rg1+ {[%clk 0:00:31.4]}
40... Bg5 {[%clk 0:00:25.2]} 41. Qc3+ {[%clk 0:00:28.7]} 41... Kf7 {[%clk
0:00:19.1]} 42. Qc4+ {[%clk 0:00:28.2]} 42... Kf6 {[%clk 0:00:17]} 43. Qe6+
{[%clk 0:00:25.9]} 43... Kg7 {[%clk 0:00:16.9]} 44. Re7+ {[%clk 0:00:23.9]}
44... Kf8 {[%clk 0:00:12.9]} 45. Rxg5 {[%clk 0:00:22.8]} 45... Qd1+ {[%clk
0:00:05.9]} 46. Kh2 {[%clk 0:00:20]} 46... Qd2+ {[%clk 0:00:06.2]} 47. Rg2
{[%clk 0:00:19.7]} 47... Qf4+ {[%clk 0:00:06.7]} 48. Kg1 {[%clk 0:00:19.2]}
48... Qc1+ {[%clk 0:00:07.2]} 49. Qe1 {[%clk 0:00:18.8]} 49... Qc5+ {[%clk
0:00:07]} 50. Re3 {[%clk 0:00:18.1]} 50... Rxd7 {[%clk 0:00:07.5]} 51. Kh1
{[%clk 0:00:17.7]} 51... Kf7 {[%clk 0:00:03.2]} 52. Qe2 {[%clk 0:00:16.1]} 52...
Qc1+ {[%clk 0:00:02.5]} 53. Kh2 {[%clk 0:00:15.5]} 53... Qc7+ {[%clk 0:00:03]}
54. Reg3 {[%clk 0:00:15.5]} 1-0